bitfinex/quotes_BTCUSD_20230118
["timestamp","ask_amount","ask_price","bid_price","bid_amount"]
[1674056934024,0.56561518,21216.0,21214.0,0.9922151]
[1674056934025,0.56561518,21216.0,21215.0,0.23568]
[1674056934283,0.56561518,21216.0,21215.0,0.857044]
[1674056935080,0.56561518,21216.0,21215.0,0.621364]
[1674056935348,0.56561518,21216.0,21215.0,0.471364]
[1674056936661,0.56561518,21216.0,21215.0,0.51569347]
[1674056936913,0.56561518,21216.0,21215.0,0.52821018]
[1674056937174,0.56561518,21216.0,21215.0,0.67821018]
[1674056938162,0.56561518,21216.0,21215.0,0.52821018]
[1674056938680,0.56561518,21216.0,21215.0,0.82715324]
[1674056939018,0.30426118,21216.0,21215.0,2.19803548]
[1674056939229,0.30426118,21216.0,21215.0,1.048497]
[1674056939495,0.30426118,21216.0,21215.0,1.04821242]
[1674056939771,0.880842,21220.0,21216.0,0.15]
[1674056940022,0.880842,21220.0,21219.0,0.38211]
[1674056940321,0.880842,21220.0,21219.0,1.80558169]
[1674056940601,0.25,21223.0,21219.0,1.795935]
[1674056940869,0.25,21223.0,21222.0,0.1465]
[1674056941127,0.00642,21223.0,21222.0,2.0921605]
[1674056941382,0.72605563,21225.0,21223.0,0.20743728]
[1674056941685,0.72605563,21225.0,21224.0,2.80514869]
[1674056941949,0.00132342,21227.0,21225.0,0.15]
[1674056942215,0.00132342,21227.0,21226.0,1.92553013]
[1674056942485,4.2e-07,21227.0,21226.0,2.17249404]
[1674056942750,0.2966365,21230.0,21226.0,2.46728224]
[1674056943061,0.0113585,21230.0,21229.0,1.38197]
[1674056943320,0.0113585,21230.0,21229.0,2.266182]
[1674056943579,0.0113585,21230.0,21229.0,2.69792667]
[1674056943833,0.0113585,21230.0,21229.0,2.74841141]
[1674056944107,0.0113585,21230.0,21229.0,2.69789126]
[1674056944926,0.00119921,21231.0,21230.0,0.15]
[1674056945189,2.1e-07,21231.0,21230.0,0.58181587]
[1674056945446,0.0012534,21234.0,21230.0,0.6323762]
[1674056945760,0.0935934,21234.0,21231.0,1.413012]
[1674056946011,0.0935934,21234.0,21232.0,0.23549]
[1674056946012,0.0012534,21234.0,21232.0,0.23549]
[1674056946526,0.0012534,21234.0,21232.0,0.706456]
[1674056946786,0.0012534,21234.0,21233.0,0.04559858]
[1674056947217,0.0012534,21234.0,21233.0,0.51656358]
[1674056948400,0.0012534,21234.0,21233.0,1.24498784]
[1674056948670,0.0012534,21234.0,21233.0,0.81209179]
[1674056948933,0.00088324,21234.0,21233.0,0.51559179]
[1674056949715,0.27086737,21230.0,21229.0,0.19812689]
[1674056949985,0.27086737,21230.0,21229.0,0.38552]
[1674056950518,0.27086737,21230.0,21229.0,1.563159]
[1674056951111,0.27086737,21230.0,21229.0,1.092106]
[1674056951366,0.27086737,21230.0,21225.0,0.706697]
[1674056951635,0.319162,21229.0,21226.0,0.471107]
[1674056951921,0.27086737,21230.0,21226.0,0.706667]
[1674056952175,0.27086737,21230.0,21227.0,0.04973861]
[1674056952651,0.27086737,21230.0,21228.0,0.94215]
[1674056952902,0.27086737,21230.0,21228.0,0.94214906]
[1674056953163,0.02086737,21230.0,21229.0,0.23552]
[1674056953422,0.02086737,21230.0,21229.0,0.706573]
[1674056953951,0.02069576,21230.0,21229.0,0.853073]
[1674056954220,0.02069576,21230.0,21229.0,0.706573]
[1674056954477,0.02069576,21230.0,21229.0,0.471053]
[1674056955282,0.02069576,21230.0,21229.0,0.5244085]
[1674056956628,0.01569576,21230.0,21229.0,0.617553]
[1674056956896,0.01569576,21230.0,21229.0,0.66507911]
[1674056957416,0.01569576,21230.0,21229.0,0.471053]
[1674056957704,3.46125326,21230.0,21228.0,0.47107406]
[1674056958215,3.46125326,21230.0,21228.0,0.94214906]
[1674056959053,0.15,21229.0,21225.0,0.471129]
[1674056959306,0.59357613,21227.0,21226.0,0.471112]
[1674056959612,0.91036213,21227.0,21226.0,0.942232]
[1674056959873,0.59357613,21227.0,21226.0,0.47112]
[1674056960137,0.91564013,21227.0,21224.0,0.471143]
[1674056960529,0.332175,21226.0,21223.0,0.471183]
[1674056960797,0.32007,21225.0,21223.0,0.942363]
[1674056961060,0.33054,21224.0,21223.0,0.942363]
[1674056961320,0.91608401,21227.0,21223.0,0.99375194]
[1674056961584,1.16608401,21227.0,21223.0,1.22934194]
[1674056961848,0.332946,21226.0,21223.0,1.22934194]
[1674056962105,0.84357613,21227.0,21225.0,0.04419217]
[1674056962370,0.59357613,21227.0,21225.0,0.04419217]
[1674056962623,0.59357613,21227.0,21226.0,0.94224]
[1674056962913,0.84357613,21227.0,21226.0,0.94224]
[1674056963162,1.16037513,21227.0,21226.0,0.94224]
[1674056963683,0.84357613,21227.0,21226.0,0.94224]
[1674056964232,1.18513213,21227.0,21226.0,0.94224]
[1674056964481,0.591556,21227.0,21225.0,0.471128]
[1674056964714,0.591556,21227.0,21224.0,0.471153]
[1674056964715,0.6521533,21226.0,21224.0,0.471153]
[1674056964970,0.337548,21225.0,21224.0,0.942298]
[1674056965223,0.25,21227.0,21224.0,0.942298]
[1674056965478,0.30781899,21227.0,21224.0,0.942298]
[1674056965733,0.30273406,21225.0,21224.0,0.471145]
[1674056965996,0.61332306,21225.0,21223.0,0.471174]
[1674056966258,0.61332306,21225.0,21219.0,0.62126]
[1674056966259,0.32244,21224.0,21219.0,0.62126]
[1674056966540,0.317892,21223.0,21219.0,0.942517]
[1674056966864,0.59035331,21222.0,21219.0,1.04034707]
[1674056967329,0.59035331,21222.0,21219.0,0.99141153]
[1674056967599,0.59035331,21222.0,21219.0,0.04889453]
[1674056967869,0.68304535,21221.0,21217.0,0.54298069]
[1674056968171,0.312483,21220.0,21218.0,0.471294]
[1674056968454,0.34761935,21221.0,21217.0,0.59187522]
[1674056968718,0.323433,21220.0,21217.0,0.07505089]
[1674056968981,0.59035331,21218.0,21217.0,0.02615636]
[1674056969241,0.91980831,21218.0,21217.0,0.02615636]
[1674056969803,1.16980831,21218.0,21217.0,0.02615636]
[1674056970630,1.51606724,21218.0,21217.0,0.02615636]
[1674056970907,1.49984243,21218.0,21217.0,5.636e-05]
[1674056971208,0.33423984,21217.0,21216.0,0.02615636]
[1674056971467,0.66526884,21217.0,21216.0,0.02615636]
[1674056971995,0.66526884,21217.0,21209.0,0.02793993]
[1674056971996,1.0107973,21217.0,21209.0,0.02793993]
[1674056972279,0.54983307,21215.0,21206.0,0.08536143]
[1674056972591,0.297852,21214.0,21206.0,0.08536143]
[1674056972845,0.54983307,21215.0,21206.0,0.08536143]
[1674056972846,0.48105,21213.0,21206.0,0.02980127]
[1674056973099,0.59035331,21207.0,21206.0,0.02980127]
[1674056973390,0.91460331,21207.0,21206.0,0.02980127]
[1674056973651,0.91652431,21207.0,21206.0,0.02980127]
[1674056973929,1.16652431,21207.0,21206.0,0.02980127]
[1674056974194,1.16652431,21207.0,21206.0,0.03030127]
[1674056974462,1.63806631,21207.0,21206.0,0.00050127]
[1674056974914,0.15,21206.0,21205.0,0.05476775]
[1674056974920,1.16652431,21207.0,21205.0,0.05476775]
[1674056975196,0.325656,21206.0,21205.0,0.05476775]
[1674056975454,0.25,21207.0,21205.0,0.04452728]
[1674056975715,0.25,21207.0,21203.0,0.471615]
[1674056976020,0.59035331,21210.0,21205.0,0.04407323]
[1674056976251,0.25,21207.0,21205.0,0.51773106]
[1674056976543,0.25,21207.0,21205.0,0.471585]
[1674056976806,0.25,21207.0,21206.0,0.15]
[1674056977073,0.59035331,21210.0,21206.0,0.15]
[1674056977352,0.25,21207.0,21205.0,0.471585]
[1674056977632,0.82506,21214.0,21205.0,0.057168]
[1674056977913,0.59035331,21206.0,21205.0,0.05045328]
[1674056978178,0.90902831,21206.0,21205.0,0.05095328]
[1674056978435,0.90902831,21206.0,21205.0,0.18489]
[1674056978436,0.59035331,21206.0,21205.0,0.18489]
[1674056978725,0.25,21207.0,21205.0,0.42066]
[1674056978994,0.15,21213.0,21205.0,0.24393645]
[1674056978995,0.59035331,21209.0,21205.0,0.24393645]
[1674056979264,0.59035331,21209.0,21205.0,0.38391204]
[1674056979265,0.25,21206.0,21205.0,0.38391204]
[1674056979537,0.25,21206.0,21205.0,0.0005]
[1674056979792,0.74035331,21206.0,21205.0,0.0005]
[1674056980282,1.43139264,21206.0,21202.0,0.05791507]
[1674056980286,0.91586531,21206.0,21205.0,0.05038406]
[1674056980544,0.59035331,21206.0,21202.0,0.04510467]
[1674056980813,0.322419,21205.0,21200.0,3.19822553]
[1674056981074,0.49223997,21207.0,21202.0,0.05540199]
[1674056981332,0.25,21206.0,21200.0,3.149331]
[1674056981586,0.92811,21210.0,21200.0,3.149331]
[1674056981587,0.7601,21210.0,21200.0,3.43406553]
[1674056982114,0.7601,21210.0,21200.0,4.23783955]
[1674056982115,0.25,21207.0,21200.0,4.23783955]
[1674056982116,0.25,21207.0,21202.0,0.23582]
[1674056982366,0.25,21207.0,21201.0,0.28453692]
[1674056982650,0.15,21209.0,21201.0,0.04869692]
[1674056982651,0.34073821,21208.0,21201.0,0.04869692]
[1674056982885,0.59035331,21203.0,21200.0,3.19822553]
[1674056983142,0.305916,21202.0,21201.0,0.0432089]
[1674056983403,0.59035331,21203.0,21201.0,0.0432089]
[1674056983968,0.84035331,21203.0,21201.0,0.0432089]
[1674056985078,0.84035331,21203.0,21200.0,3.149331]
[1674056985361,0.84035331,21203.0,21201.0,0.04975105]
[1674056985621,0.84035331,21203.0,21200.0,3.149331]
[1674056985891,0.84035331,21203.0,21201.0,0.05018554]
[1674056986150,0.84035331,21203.0,21200.0,3.43407553]
[1674056986508,0.84035331,21203.0,21201.0,0.04799583]
[1674056986705,0.84035331,21203.0,21201.0,0.23583]
[1674056986706,0.25,21203.0,21201.0,0.23583]
[1674056986967,0.25,21203.0,21202.0,0.943306]
[1674056987493,0.25,21203.0,21202.0,0.99033505]
[1674056987761,0.36246071,21212.0,21203.0,0.15]
[1674056988034,0.3398393,21208.0,21202.0,0.99033505]
[1674056988290,0.59035331,21205.0,21202.0,0.471653]
[1674056989318,0.15,21209.0,21202.0,0.21812859]
[1674056989590,0.36766614,21210.0,21204.0,0.23578]
[1674056989884,0.17396,21212.0,21204.0,0.471595]
[1674056990154,0.33937432,21211.0,21204.0,0.471595]
[1674056990723,0.8587403,21212.0,21207.0,0.23577]
[1674056990977,0.2872749,21210.0,21206.0,0.471554]
[1674056991245,0.59035331,21212.0,21206.0,0.471554]
[1674056991513,0.86458349,21212.0,21206.0,0.471554]
[1674056992001,0.59035331,21212.0,21207.0,0.01257444]
[1674056992003,0.59035331,21212.0,21209.0,0.23574]
[1674056992266,0.59035331,21212.0,21210.0,0.471475]
[1674056992796,0.34666801,21214.0,21210.0,0.471475]
[1674056993572,0.07846907,21215.0,21211.0,0.23572]
[1674056993845,0.07846907,21215.0,21212.0,0.942852]
[1674056994632,0.07846907,21215.0,21214.0,0.23567]
[1674056994894,0.07846907,21215.0,21214.0,1.178442]
[1674056995163,0.07846907,21215.0,21214.0,0.942772]
[1674056995426,0.07846907,21215.0,21213.0,0.24716876]
[1674056995427,0.07270932,21215.0,21213.0,0.01242135]
[1674056995721,0.07270932,21215.0,21209.0,0.795957]
[1674056995722,0.58154272,21213.0,21209.0,0.621477]
[1674056995976,0.58154272,21213.0,21210.0,0.471457]
[1674056996250,1.17189603,21213.0,21209.0,0.621477]
[1674056996509,1.17189603,21213.0,21210.0,0.471454]
[1674056996778,1.42189603,21213.0,21210.0,0.471454]
[1674056997047,1.42189603,21213.0,21210.0,0.707194]
[1674056997318,0.83154272,21213.0,21210.0,0.707194]
[1674056997579,0.83154272,21213.0,21211.0,0.15]
[1674056997893,0.83154272,21213.0,21212.0,0.942862]
[1674056998917,0.83154272,21213.0,21210.0,0.471454]
[1674056999440,1.17625919,21213.0,21210.0,0.471454]
[1674056999959,0.83154272,21213.0,21210.0,0.471454]
[1674057000248,0.83154272,21213.0,21210.0,0.707184]
[1674057000805,1.11810259,21213.0,21210.0,0.471454]
[1674057001117,1.11810259,21213.0,21209.0,0.15]
[1674057001428,0.35709542,21212.0,21205.0,0.621571]
[1674057001712,0.35709542,21212.0,21204.0,0.50231619]
[1674057001713,0.59035331,21210.0,21204.0,0.50231619]
[1674057001993,0.333149,21209.0,21204.0,0.03072319]
[1674057002248,0.59035331,21207.0,21204.0,0.50232019]
[1674057002519,0.58073817,21207.0,21204.0,0.03072319]
[1674057003306,0.323138,21206.0,21204.0,0.03072319]
[1674057003571,0.15,21205.0,21204.0,0.03072319]
[1674057004123,0.456363,21205.0,21204.0,0.03072319]
[1674057004952,0.4,21205.0,21204.0,0.03072319]
[1674057005218,0.25,21205.0,21204.0,0.03072319]
[1674057006650,0.4,21205.0,21204.0,0.03072319]
[1674057006930,0.708251,21205.0,21204.0,0.03072319]
[1674057007184,1.07822284,21205.0,21204.0,0.03072319]
[1674057008729,0.708251,21205.0,21204.0,2.319e-05]
[1674057008993,0.09214638,21203.0,21200.0,0.0005]
[1674057009251,0.341934,21202.0,21200.0,0.0005]
[1674057009513,1.07721217,21201.0,21200.0,0.0005]
[1674057010048,1.07721217,21201.0,21200.0,0.00012984]
[1674057010362,1.42346141,21201.0,21200.0,0.00012984]
[1674057010626,0.15012,21200.0,21192.0,0.28261601]
[1674057010925,1.11084115,21198.0,21188.0,0.10101]
[1674057011191,1.25752563,21197.0,21188.0,0.26841]
[1674057011464,1.41343817,21197.0,21191.0,0.1674]
[1674057011746,0.58073817,21197.0,21191.0,0.16739238]
[1674057012005,0.41330438,21201.0,21193.0,0.23593]
[1674057012285,0.25,21197.0,21196.0,0.23589]
[1674057012537,0.25,21197.0,21196.0,0.15]
[1674057012825,0.38572834,21203.0,21196.0,0.15]
[1674057013324,0.38572834,21203.0,21202.0,0.2358]
[1674057013325,0.09214638,21203.0,21202.0,0.2358]
[1674057013590,0.09214638,21203.0,21199.0,0.471704]
[1674057013591,0.28532069,21202.0,21199.0,0.471704]
[1674057013857,0.28532069,21202.0,21198.0,0.47174]
[1674057014389,0.09214638,21203.0,21198.0,0.47174]
[1674057014390,0.34214638,21203.0,21198.0,0.62174]
[1674057014631,0.34214638,21203.0,21200.0,0.23585]
[1674057014905,0.33114638,21203.0,21201.0,0.94335]
[1674057015417,0.3263213,21203.0,21201.0,0.94335]
[1674057016223,0.3263213,21203.0,21201.0,0.93835]
[1674057016456,0.3263213,21203.0,21201.0,0.466675]
[1674057016725,0.27609554,21202.0,21198.0,0.471724]
[1674057017030,0.90705947,21203.0,21197.0,0.15]
[1674057017295,0.52277017,21202.0,21197.0,0.15]
[1674057017574,0.51439646,21202.0,21197.0,0.15]
[1674057017843,0.871664,21202.0,21193.0,0.50243303]
[1674057018117,0.58073817,21198.0,21193.0,0.03059903]
[1674057018393,0.15,21197.0,21193.0,0.03059903]
[1674057018930,0.58073817,21195.0,21193.0,0.03059903]
[1674057020217,0.83073817,21195.0,21189.0,6.66e-05]
[1674057020470,0.331263,21194.0,21188.0,0.0960766]
[1674057020772,1.44906517,21195.0,21194.0,0.00645923]
[1674057021065,1.92087417,21195.0,21188.0,0.04033583]
[1674057021334,1.92087417,21195.0,21187.0,4.70345657]
[1674057021335,0.1465,21192.0,21187.0,4.70345657]
[1674057021623,0.471907,21191.0,21187.0,4.70345657]
[1674057021881,0.471907,21191.0,21184.0,6.66e-05]
[1674057021882,0.58073817,21188.0,21184.0,6.66e-05]
[1674057022141,0.342063,21187.0,21185.0,4.65374609]
[1674057022484,0.342063,21187.0,21184.0,6.66e-05]
[1674057022485,0.58073817,21186.0,21184.0,0.03149938]
[1674057022734,0.327662,21185.0,21177.0,0.41870744]
[1674057023047,0.311694,21184.0,21176.0,0.472222]
[1674057023311,0.15,21185.0,21176.0,0.472223]
[1674057023584,0.29602803,21184.0,21178.0,0.04702905]
[1674057023840,0.29602803,21184.0,21176.0,0.858333]
[1674057023841,0.58073817,21181.0,21176.0,0.858333]
[1674057024099,0.58073817,21181.0,21177.0,0.04702905]
[1674057024368,0.58073817,21181.0,21174.0,0.6319282]
[1674057024790,0.58073817,21181.0,21177.0,0.04702905]
[1674057024791,0.83073817,21181.0,21177.0,0.04702905]
[1674057024792,0.15,21180.0,21174.0,0.7960782]
[1674057025077,0.15,21180.0,21178.0,0.1461]
[1674057025345,0.1443,21180.0,21179.0,0.94433]
[1674057025611,0.25,21180.0,21179.0,0.99135905]
[1674057025877,0.25,21180.0,21179.0,1.37740905]
[1674057026140,0.86657919,21186.0,21179.0,1.22740905]
[1674057026644,0.25,21180.0,21179.0,0.99135905]
[1674057026647,0.25,21180.0,21179.0,0.94433]
[1674057026951,0.25,21180.0,21176.0,0.472226]
[1674057026952,0.56927361,21180.0,21176.0,0.472226]
[1674057027178,0.15,21179.0,21175.0,0.04702905]
[1674057027783,0.58073817,21178.0,21175.0,0.04702905]
[1674057027974,0.331595,21177.0,21171.0,0.472344]
[1674057028241,0.72723817,21178.0,21169.0,0.491268]
[1674057028242,0.481164,21176.0,21169.0,0.018897]
[1674057028514,0.58073817,21170.0,21169.0,0.018897]
[1674057028773,0.89527617,21170.0,21169.0,0.018897]
[1674057029058,0.31121,21176.0,21169.0,0.018897]
[1674057029059,0.4054824,21174.0,21169.0,0.018897]
[1674057029311,0.57503817,21175.0,21169.0,0.110947]
[1674057029593,0.57503817,21175.0,21169.0,0.018897]
[1674057029857,0.28649256,21174.0,21169.0,0.472369]
[1674057030118,0.57503817,21175.0,21167.0,0.88922603]
[1674057030397,0.86069008,21175.0,21167.0,0.65301603]
[1674057030955,0.36850829,21171.0,21167.0,0.18059903]
[1674057031212,0.15,21170.0,21168.0,0.0085]
[1674057031479,0.63811106,21169.0,21167.0,0.03059903]
[1674057031740,0.15,21170.0,21167.0,0.03059903]
[1674057031999,0.57503817,21168.0,21167.0,0.03059903]
[1674057032532,0.04283196,21168.0,21167.0,0.04949503]
[1674057032800,0.2443,21168.0,21167.0,0.04949503]
[1674057033318,0.2443,21168.0,21167.0,0.56893808]
[1674057033320,0.15755,21174.0,21167.0,0.67190903]
[1674057033579,0.25,21173.0,21167.0,0.86543808]
[1674057033834,0.25,21173.0,21169.0,0.1465]
[1674057034095,0.15677,21179.0,21170.0,1.094724]
[1674057034379,0.25,21173.0,21171.0,0.40618308]
[1674057034634,0.25,21173.0,21172.0,0.472321]
[1674057034905,0.60521993,21180.0,21172.0,0.472321]
[1674057034906,0.04283196,21180.0,21172.0,0.472321]
[1674057035186,0.04283196,21180.0,21173.0,0.55618308]
[1674057035448,0.04283196,21180.0,21174.0,0.472256]
[1674057035749,0.25,21180.0,21175.0,0.23612]
[1674057036015,0.25,21180.0,21178.0,0.472177]
[1674057036272,0.04283196,21184.0,21178.0,0.472188]
[1674057036273,0.04365129,21184.0,21178.0,0.472188]
[1674057036528,0.03795129,21184.0,21178.0,0.472188]
[1674057037062,0.03713196,21181.0,21177.0,0.472189]
[1674057037325,0.03713196,21181.0,21175.0,0.472235]
[1674057038156,0.28713196,21181.0,21176.0,0.15]
[1674057038442,0.28713196,21181.0,21178.0,0.0005]
[1674057038443,0.25,21181.0,21178.0,0.0005]
[1674057038700,0.2443,21181.0,21179.0,0.94433]
[1674057038981,0.2443,21181.0,21180.0,0.23607]
[1674057039250,0.18713196,21191.0,21181.0,0.15]
[1674057039515,0.33895196,21194.0,21185.0,0.38251]
[1674057039886,0.60678752,21194.0,21187.0,0.943953]
[1674057039887,0.18713196,21194.0,21187.0,0.471982]
[1674057040134,0.18713196,21194.0,21188.0,0.23598]
[1674057040135,0.03713196,21194.0,21188.0,0.23598]
[1674057040380,0.03713196,21194.0,21189.0,0.94385]
[1674057040381,0.00085475,21190.0,21189.0,0.94385]
[1674057040638,0.03228671,21194.0,21189.0,0.99087905]
[1674057040884,0.03228671,21194.0,21191.0,0.1465]
[1674057041139,0.03228671,21194.0,21193.0,0.3813]
[1674057041392,0.0763213,21203.0,21193.0,0.78697864]
[1674057041665,0.34238029,21202.0,21196.0,0.943574]
[1674057041927,0.4136112,21203.0,21196.0,0.471787]
[1674057042443,0.4136112,21203.0,21196.0,0.87746564]
[1674057042701,0.0763213,21203.0,21197.0,0.0085]
[1674057042947,0.0763213,21203.0,21198.0,1.238848]
[1674057043206,0.05229989,21203.0,21201.0,0.1465]
[1674057043465,0.02611112,21203.0,21202.0,1.136196]
[1674057043794,0.01471112,21203.0,21202.0,0.572203]
[1674057044512,0.1260817,21212.0,21203.0,0.15]
[1674057044764,0.1260817,21212.0,21205.0,0.943142]
[1674057044765,0.12433907,21212.0,21205.0,0.943142]
[1674057045011,0.03314146,21212.0,21205.0,1.178932]
[1674057045271,0.03314146,21212.0,21205.0,0.943142]
[1674057045517,0.2703663,21211.0,21205.0,0.471571]
[1674057045775,0.2703663,21211.0,21200.0,0.471693]
[1674057045776,0.03228671,21206.0,21200.0,0.471693]
[1674057046324,0.03228671,21206.0,21198.0,0.621735]
[1674057046540,0.03228671,21206.0,21197.0,0.39858974]
[1674057046820,0.03228671,21206.0,21196.0,1.47036074]
[1674057047063,0.03228671,21202.0,21197.0,1.02033474]
[1674057047316,0.03228671,21202.0,21199.0,0.1465]
[1674057047317,0.02658671,21202.0,21199.0,0.1465]
[1674057047594,0.02658671,21202.0,21198.0,0.87028349]
[1674057047836,0.14624,21205.0,21197.0,0.66877405]
[1674057047837,0.17658671,21204.0,21197.0,0.471745]
[1674057048073,0.25,21202.0,21196.0,0.15]
[1674057048322,0.25,21202.0,21193.0,0.471847]
[1674057048323,0.721672,21202.0,21193.0,0.471847]
[1674057048594,0.25,21202.0,21193.0,0.9437]
[1674057048854,0.02658671,21198.0,21194.0,0.15]
[1674057049078,0.25,21202.0,21195.0,0.707704]
[1674057049333,0.02658671,21197.0,21193.0,0.15]
[1674057049573,0.34944257,21197.0,21192.0,0.15]
[1674057049817,0.02658671,21197.0,21192.0,0.15]
[1674057050066,0.02658671,21197.0,21193.0,0.471853]
[1674057050309,0.35728797,21198.0,21191.0,0.15]
[1674057050551,0.02658671,21193.0,21190.0,0.6219]
[1674057050821,0.02658671,21193.0,21190.0,0.15]
[1674057051069,0.02658671,21193.0,21185.0,0.472018]
[1674057051385,0.02658671,21193.0,21187.0,0.471985]
[1674057051579,0.27658671,21193.0,21192.0,0.02]
[1674057052071,0.58902971,21193.0,21192.0,0.02]
[1674057052564,0.58902971,21193.0,21184.0,0.622046]
[1674057052812,0.804156,21192.0,21182.0,0.51911805]
[1674057053071,0.804156,21192.0,21178.0,0.49193]
[1674057053072,0.473287,21191.0,21183.0,0.15]
[1674057053335,0.281936,21190.0,21181.0,0.39858974]
[1674057053624,0.281936,21190.0,21181.0,0.46922484]
[1674057053625,0.1424,21188.0,21181.0,0.46922484]
[1674057053895,0.02658671,21183.0,21181.0,0.15]
[1674057054351,0.02658671,21183.0,21182.0,0.050153]
[1674057054352,0.11892671,21183.0,21182.0,0.050153]
[1674057054600,0.11892671,21183.0,21178.0,0.472669]
[1674057054840,0.36219089,21183.0,21178.0,0.0005]
[1674057055099,0.564426,21183.0,21178.0,0.0005]
[1674057055371,0.1465,21179.0,21172.0,0.39710052]
[1674057055622,0.472154,21180.0,21170.0,0.472353]
[1674057055876,0.01698139,21175.0,21170.0,0.04889453]
[1674057056110,0.472256,21175.0,21171.0,0.15]
[1674057056346,0.01698139,21172.0,21167.0,0.09838956]
[1674057056605,0.472337,21172.0,21167.0,0.04949503]
[1674057056855,0.10932139,21168.0,21167.0,0.04949503]
[1674057057095,0.44404539,21168.0,21167.0,0.04949503]
[1674057057337,0.43112539,21168.0,21167.0,0.03059903]
[1674057057579,0.57291987,21168.0,21167.0,0.03059903]
[1674057057828,0.57291987,21168.0,21167.0,0.02719903]
[1674057058079,0.26698139,21168.0,21167.0,0.02719903]
[1674057058575,0.26698139,21168.0,21167.0,0.21651508]
[1674057058815,0.26698139,21168.0,21167.0,0.41540961]
[1674057059172,0.25,21168.0,21167.0,0.41540961]
[1674057059436,0.25,21168.0,21167.0,0.22743603]
[1674057059702,0.25,21168.0,21167.0,0.09632903]
[1674057061029,0.59465954,21168.0,21167.0,0.04609203]
[1674057061292,0.25,21168.0,21167.0,0.04609203]
[1674057061569,0.25,21168.0,21167.0,0.06609203]
[1674057062104,0.25,21168.0,21167.0,0.11632903]
[1674057062374,0.472236,21176.0,21167.0,0.11632903]
[1674057062375,0.80411605,21181.0,21167.0,0.11632903]
[1674057062644,0.80411605,21181.0,21173.0,0.23615]
[1674057062645,0.01698139,21178.0,21173.0,0.23615]
[1674057062920,0.01698139,21178.0,21174.0,0.050202]
[1674057063197,0.35517199,21178.0,21173.0,0.472285]
[1674057063470,0.35517199,21178.0,21174.0,0.050198]
[1674057063729,0.14083,21181.0,21170.0,0.47236]
[1674057063730,0.26756733,21177.0,21170.0,0.47236]
[1674057063994,0.26756733,21177.0,21168.0,0.39563788]
[1674057063995,0.01698139,21175.0,21168.0,0.39563788]
[1674057064281,0.01698139,21175.0,21167.0,0.21609203]
[1674057064282,0.01698139,21175.0,21167.0,0.06609203]
[1674057064560,0.472265,21175.0,21167.0,0.06609203]
[1674057064840,0.03621877,21168.0,21167.0,0.06609203]
[1674057065887,0.39476979,21168.0,21167.0,0.06609203]
[1674057066149,0.36388977,21168.0,21167.0,0.06294403]
[1674057066418,0.36388977,21168.0,21160.0,0.37146449]
[1674057066419,0.61388977,21168.0,21160.0,0.22146449]
[1674057066690,0.01698139,21161.0,21160.0,0.22146449]
[1674057066959,0.32405,21161.0,21160.0,0.22146449]
[1674057067238,0.39264984,21167.0,21160.0,0.22146449]
[1674057067239,0.01698139,21166.0,21160.0,0.22146449]
[1674057067494,0.15,21165.0,21160.0,0.00246449]
[1674057067756,0.25,21163.0,21160.0,0.02136249]
[1674057068015,0.25,21163.0,21162.0,0.1465]
[1674057068274,0.33186577,21166.0,21162.0,0.855305]
[1674057068577,0.37460767,21164.0,21163.0,0.050261]
[1674057068839,0.36342492,21163.0,21160.0,0.17136249]
[1674057069373,0.36342492,21163.0,21160.0,0.02136249]
[1674057069694,0.80293475,21168.0,21160.0,0.02136249]
[1674057069961,0.01698139,21165.0,21160.0,0.17136249]
[1674057070217,0.25,21163.0,21161.0,0.195563]
[1674057070475,0.31299314,21168.0,21162.0,0.1465]
[1674057070732,0.31299314,21168.0,21163.0,0.200262]
[1674057070733,0.01698139,21167.0,21163.0,0.200262]
[1674057070992,0.26923738,21168.0,21163.0,0.15]
[1674057071261,0.26923738,21168.0,21165.0,0.38234]
[1674057071526,0.26923738,21168.0,21166.0,0.472455]
[1674057071789,0.26923738,21168.0,21167.0,0.35024]
[1674057072057,0.26923738,21168.0,21167.0,0.20024]
[1674057072365,0.26923738,21168.0,21167.0,0.50024]
[1674057072621,0.26923738,21168.0,21167.0,0.88254]
[1674057072880,0.15,21179.0,21167.0,0.92956905]
[1674057073141,0.15,21178.0,21174.0,0.23613]
[1674057073407,0.36925635,21178.0,21175.0,0.050202]
[1674057073887,0.32647427,21174.0,21168.0,0.3862]
[1674057073890,0.32647427,21174.0,21168.0,0.15]
[1674057074149,0.317693,21173.0,21167.0,0.3]
[1674057074410,0.01698139,21176.0,21167.0,0.772423]
[1674057074687,0.01698139,21176.0,21170.0,0.1454]
[1674057074982,0.01698139,21176.0,21171.0,0.15]
[1674057075221,0.01698139,21176.0,21172.0,0.05021]
[1674057075478,0.01698139,21176.0,21169.0,0.472378]
[1674057075757,0.01698139,21176.0,21172.0,0.1453]
[1674057076021,0.34157696,21179.0,21172.0,0.2085]
[1674057076302,0.34157696,21179.0,21173.0,0.350205]
[1674057076575,0.01698139,21179.0,21173.0,0.772299]
[1674057076864,0.56442886,21182.0,21173.0,0.3]
[1674057076865,0.33182023,21178.0,21173.0,0.3]
[1674057077127,0.01698139,21175.0,21173.0,0.3]
[1674057077419,0.01698139,21175.0,21172.0,0.0632]
[1674057077713,0.314867,21174.0,21172.0,0.0632]
[1674057077987,0.01698139,21175.0,21172.0,0.0632]
[1674057078248,0.62378288,21181.0,21172.0,0.0632]
[1674057078501,0.01698139,21179.0,21173.0,0.050207]
[1674057078758,0.01698139,21179.0,21174.0,0.472258]
[1674057079240,0.30252322,21179.0,21175.0,0.050195]
[1674057079243,0.01698139,21179.0,21173.0,0.472297]
[1674057079499,0.01698139,21179.0,21173.0,0.944593]
[1674057079760,0.01698139,21179.0,21174.0,0.200196]
[1674057080032,0.01698139,21179.0,21175.0,0.472243]
[1674057080319,0.28718,21185.0,21176.0,0.050191]
[1674057080320,0.3474255,21182.0,21176.0,0.050191]
[1674057080569,0.3374255,21182.0,21174.0,0.3]
[1674057080839,0.3374255,21182.0,21172.0,0.34688]
[1674057080840,0.01698139,21177.0,21172.0,0.1465]
[1674057081096,0.308523,21176.0,21170.0,0.472356]
[1674057081377,0.01698139,21177.0,21170.0,0.472356]
[1674057081378,0.01698139,21177.0,21172.0,0.472321]